Cogmind - Beta 12 @@@ ROGUE MODE // 2023.07.12 @ 23:25:27 Player: Sara Result: Self-destructed Performance ------------- Evolutions (1) 500 Regions Visited (3) 600 Robots Destroyed (32) 160 Value Destroyed (665) 665 Prototype IDs (4) 80 Alien Tech Used (0) 0 Bonus (200) 200 TOTAL SCORE: 2205 Bonus ------- Pacifist 200 Cogmind --------- Core Integrity 121/400 Matter 215/300 Energy 90/100 System Corruption 0% Temperature Cool (0) Movement Treading (160) Location -9/Materials Parts ------- > --- POWER (1) -------- (None) > --- PROPULSION (2) --- Light Treads Light Treads > --- UTILITY (4) ------ Small Storage Unit > --- WEAPON (2) ------- Improved Light Cannon Improved Light Cannon > --- INVENTORY (8) ---- Armored Wheel Particle Gun Assault Rifle Improved Light Cannon Maul Peak State ------------ > --- POWER ------------ Light Nuclear Core > --- PROPULSION ------- Aluminum Leg Aluminum Leg > --- UTILITY ---------- Improved Heat Sink Small Storage Unit Targeting Computer > --- WEAPON ----------- Maul > --- INVENTORY -------- Light Treads Light Treads Armored Wheel Small Laser Particle Gun Assault Rifle Light Assault Rifle Grenade Launcher [Rating: 13] Favorites ----------- Power Light Ion Engine Engine Light Ion Engine Power Core Light Nuclear Core Propulsion Wheel Treads Light Treads Leg Aluminum Leg Wheel Wheel Utility Small Storage Unit Device Improved Heat Sink Storage Small Storage Unit Processor Targeting Computer Weapon Maul Energy Gun Small Laser Energy Cannon Beam Cannon Ballistic Gun Light Assault Rifle Ballistic Cannon Improved Light Cannon Launcher Grenade Launcher Impact Weapon Maul Build | -11 -10 -10 -9 ------- Run | Jun Mat Min Mat Slots Evolved 2 | . . . 2 Power . | . . . . Propulsion . | . . . . Utility 2 | . . . 2 Weapon . | . . . . Parts Attached 21 | 6 . . 15 Power 3 | 1 . . 2 Engine 2 | 1 . . 1 Core 1 | . . . 1 Reactor . | . . . . Propulsion 6 | 2 . . 4 Treads 2 | . . . 2 Leg 2 | . . . 2 Wheel 2 | 2 . . . Hover . | . . . . Flight . | . . . . Utility 4 | 1 . . 3 Device 2 | . . . 2 Storage 1 | 1 . . . Processor 1 | . . . 1 Hackware . | . . . . Protection . | . . . . Artifact . | . . . . Weapon 8 | 2 . . 6 Energy Gun 2 | 1 . . 1 Energy Cannon 1 | . . . 1 Ballistic Gun 1 | 1 . . . Ballistic Cannon 2 | . . . 2 Launcher 1 | . . . 1 Special Weapon . | . . . . Impact Weapon 1 | . . . 1 Slashing Weapon . | . . . . Piercing Weapon . | . . . . Special Melee Weapon . | . . . . Unidentified Prototypes . | . . . . Parts Lost 11 | . . . 11 Power 2 | . . . 2 Propulsion 4 | . . . 4 Utility 3 | . . . 3 Weapon 2 | . . . 2 Highest Loss Streak 4 | . . . 4 To Critical Strikes . | . . . . Average Slot Usage (%) 76 | . 85 85 74 Engine 5 | . 14 14 4 Leg 9 | . . . 11 Wheel 10 | . 28 28 7 Device 8 | . . . 9 Storage 11 | . 14 14 11 Processor 9 | . . . 10 Energy Gun 4 | . 14 14 2 Energy Cannon 1 | . . . 1 Ballistic Gun 3 | . 14 14 2 Launcher 3 | . . . 3 Impact Weapon 7 | . . . 8 Naked Turns . | . . . . Heaviest Build 17 | 10 10 10 17 Greatest Support 20 | 20 20 20 20 Greatest Overweight (x) 4 | . . . 4 Average Overweight (x) . | . . . . Largest Inventory Capacity 8 | 8 8 8 8 Average Capacity 7 | 7 8 8 8 Most Carried 8 | 4 5 5 8 Average Carried 7 | 2 4 5 7 Final Capacity 8 | 8 8 8 8 Final Carried 5 | 4 5 5 5 Class Distribution -------------------- 93% | Mutant 6% | Scavenger-Mutant Dominant Class ---------------- Mutant | -10/Materials Mutant | -10/Mines Mutant | -9/Materials Resources | -11 -10 -10 -9 ----------- Run | Jun Mat Min Mat Matter Collected 377 | 227 . . 150 Remotely . | . . . . Salvage Created 910 | . . . 910 Parts 31 | . . . 31 Haulers Intercepted 1 | . . . 1 Recyclers Shooed 2 | . . . 2 Parts Field Recycled . | . . . . Retrieved Matter . | . . . . Parts Self-Destructed . | . . . . Prevented . | . . . . Kills | -11 -10 -10 -9 ------- Run | Jun Mat Min Mat Combat Hostiles Destroyed 20 | . . . 20 Melee 11 | . . . 11 Guns 1 | . . . 1 Cannons 3 | . . . 3 Classes Destroyed 9 | . . . 9 Worker 4 | . . . 4 Builder 4 | . . . 4 Hauler 1 | . . . 1 Recycler 1 | . . . 1 Mechanic 1 | . . . 1 Operator 1 | . . . 1 Swarmer 7 | . . . 7 Grunt 10 | . . . 10 Sentry 3 | . . . 3 Best Kill Streak 8 | . . . 8 Combat Bots Only 6 | . . . 6 Max Kills in Single Turn 2 | . . . 2 Gunslinging . | . . . . Exploded . | . . . . Melee 1 | . . . 1 Uniques/NPCs Destroyed . | . . . . Combat | -11 -10 -10 -9 -------- Run | Jun Mat Min Mat Damage Taken 1133 | . . . 1133 Core 279 | . . . 279 Absorbed by Shields 9 | . . . 9 Core Remaining (%) 100 | 100 . 100 . Volleys Fired 19 | . . . 19 Largest 2 | . . . 2 Hottest 78 | . . . 78 Shots Fired 36 | . . . 36 Gun 24 | . . . 24 Cannon 10 | . . . 10 Launcher 2 | . . . 2 Special . | . . . . Kinetic 22 | . . . 22 Thermal 12 | . . . 12 Explosive 2 | . . . 2 Electromagnetic . | . . . . Robot Hit Streak 5 | . . . 5 Robot Miss Streak 2 | . . . 2 Penetration Max . | . . . . Secondary Targets . | . . . . Shots Hit Robots 67 | . . . 67 Core Hits 21 | . . . 21 Critical Kills 4 | . . . 4 Critical Parts Destroyed 10 | . . . 10 Critical Strikes 14 | . . . 14 Smash 14 | . . . 14 Melee Attacks 55 | . . . 55 Impact 55 | . . . 55 Slashing . | . . . . Piercing . | . . . . Sneak Attacks 8 | . . . 8 Combat Hostiles . | . . . . Follow-up Attacks . | . . . . Damage Inflicted 2279 | . . . 2279 Guns 165 | . . . 165 Cannons 198 | . . . 198 Explosions 85 | . . . 85 Melee 1831 | . . . 1831 Ramming . | . . . . Kinetic 242 | . . . 242 Thermal 121 | . . . 121 Explosive 85 | . . . 85 Electromagnetic . | . . . . Impact 1831 | . . . 1831 Slashing . | . . . . Piercing . | . . . . Highest Corruption . | . . . . Average Corruption . | . . . . Corruption Purged . | . . . . Corruption Blocked . | . . . . Overload Shots . | . . . . Overflow Damage 742 | . . . 742 Projectiles 6 | . . . 6 Explosions 2 | . . . 2 Melee 734 | . . . 734 Knockbacks 5 | . . . 5 Impact 3 | . . . 3 Kinetic 2 | . . . 2 Secondary . | . . . . Self-Inflicted Damage 14 | . . . 14 Shots 1 | . . . 1 Rammed . | . . . . Targets Rammed . | . . . . Kicked . | . . . . Crushed . | . . . . Highest Temperature 32 | . . . 32 Average Temperature 15 | . . . 15 Received Heat Transfer 363 | . . . 363 Siege Activations . | . . . . Robots Corrupted . | . . . . Combat Hostiles . | . . . . Parts Fried 21 | . . . 21 Impact Corruptions 29 | . . . 29 Robots Melted . | . . . . Combat Hostiles . | . . . . Parts Melted . | . . . . Heat Transferred 275 | . . . 275 Parts Sabotaged . | . . . . Parts Stolen . | . . . . Parts Stripped . | . . . . Power Chain Reactions . | . . . . Missiles Intercepted . | . . . . Alert | -11 -10 -10 -9 ------- Run | Jun Mat Min Mat Peak Influence 383 | . 45 17 383 Initial 17 | . . 17 6 Average 170 | . 25 17 203 Maximum Alert Level 1 | . . . 1 Low Security (%) 49 | 100 100 100 38 Level 1 50 | . . . 61 Level 2 . | . . . . Level 3 . | . . . . Level 4 . | . . . . Level 5 . | . . . . High Security . | . . . . Max Security . | . . . . Squads Dispatched 2 | . 1 . 1 Investigation 1 | . 1 . . Extermination . | . . . . Reinforcement 1 | . . . 1 Assault . | . . . . Garrison . | . . . . Intercept . | . . . . Searches Triggered . | . . . . Construction Impeded . | . . . . Haulers Reinforced . | . . . . Active Scanning Responses . | . . . . Cargo Convoy Interrupts . | . . . . Stealth | -11 -10 -10 -9 --------- Run | Jun Mat Min Mat Distress Signals 1 | . . . 1 Communications Jammed . | . . . . Distress Signals . | . . . . Times Spotted 27 | . 1 . 26 Peak Tracking Total 7 | . 1 . 7 Tactical Retreats 1 | . . . 1 Traps | -11 -10 -10 -9 ------- Run | Jun Mat Min Mat Traps Triggered . | . . . . Indirectly . | . . . . Trap Hack Attempts . | . . . . Triggered . | . . . . Disarmed . | . . . . Reprogrammed . | . . . . Reused . | . . . . Traps Extracted . | . . . . Installed . | . . . . Triggered . | . . . . Machines | -11 -10 -10 -9 ---------- Run | Jun Mat Min Mat Machines Disabled 2 | . . . 2 Max in Single Turn 2 | . . . 2 Machines Repaired . | . . . . Machines Sabotaged . | . . . . Overloaded Fab Kills . | . . . . Hacking | -11 -10 -10 -9 --------- Run | Jun Mat Min Mat Machines Accessed 4 | . 3 . 1 Terminals 4 | . 3 . 1 Fabricators . | . . . . Repair Stations . | . . . . Recycling Units . | . . . . Scanalyzers . | . . . . Garrison Access . | . . . . Total Hacks 14 | . 11 . 3 Successful 6 | . 5 . 1 Failed 8 | . 6 . 2 Catastrophic 1 | . 1 . . Database Lockouts . | . . . . Manual 9 | . 9 . . Terminals 14 | . 11 . 3 Fabricators . | . . . . Repair Stations . | . . . . Recycling Units . | . . . . Scanalyzers . | . . . . Garrison Access . | . . . . Terminal Hacks 5 | . 4 . 1 Robot Analysis 1 | . 1 . . Prototype ID Bank 2 | . 1 . 1 Terminal Index 1 | . 1 . . Registered Components 1 | . 1 . . Fabricator Hacks . | . . . . Repair Station Hacks . | . . . . Recycling Unit Hacks . | . . . . Scanalyzer . | . . . . Garrison Access Hacks . | . . . . Unauthorized Hacks 1 | . 1 . . Terminals 1 | . 1 . . Operators 1 | . 1 . . Fabricators . | . . . . Repair Stations . | . . . . Recycling Units . | . . . . Scanalyzers . | . . . . Garrison Access . | . . . . Data Cores Recovered . | . . . . Used . | . . . . Hacking Detections 4 | . 3 . 1 Full Trace Events 3 | . 2 . 1 Feedback Events . | . . . . Feedback Blocked . | . . . . Robot Schematics Acquired . | . . . . Robots Built . | . . . . Authchips . | . . . . Time . | . . . . Total Robot Build Rating . | . . . . Part Schematics Acquired . | . . . . Parts Built . | . . . . Authchips . | . . . . Time . | . . . . Total Part Build Rating . | . . . . Parts Repaired . | . . . . Time . | . . . . Parts Recycled . | . . . . Recycled Matter . | . . . . Retrieved Matter . | . . . . Retrieved Components . | . . . . Parts Scanalyzed . | . . . . Part Schematics Acquired . | . . . . Parts Damaged . | . . . . Bothacking | -11 -10 -10 -9 ------------ Run | Jun Mat Min Mat Used RIF Installer . | . . . . Robots Hacked . | . . . . Non-combat . | . . . . Combat . | . . . . Robot Hacks Applied . | . . . . Relay Couplers Released . | . . . . Fabnet Peak Effective % . | . . . . Robots Rewired . | . . . . Allies Hacked . | . . . . Hacks Repelled . | . . . . Allies | -11 -10 -10 -9 -------- Run | Jun Mat Min Mat Total Allies . | . . . . Largest Group . | . . . . Highest-Rated Group . | . . . . Highest-Rated Ally . | . . . . Total Orders . | . . . . Ally Attacks . | . . . . Total Damage . | . . . . Kills . | . . . . Allies Corrupted . | . . . . Allies Melted . | . . . . Intel | -11 -10 -10 -9 ------- Run | Jun Mat Min Mat Robot Analysis Total 1 | . 1 . . Derelict Logs Recovered . | . . . . Drone Launches . | . . . . Drone Recoveries . | . . . . Exploration | -11 -10 -10 -9 ------------- Run | Jun Mat Min Mat Turns Passed 874 | 48 80 27 719 Spaces Moved 521 | 45 80 34 362 Core 6 | 1 . . 5 Treads . | . . . . Legs 224 | . . . 224 Wheels 291 | 44 80 34 133 Hover . | . . . . Flight . | . . . . Fastest Speed 50 | 50 80 80 80 Average Speed 103 | 79 80 80 113 Slowest Speed 250 | 80 80 80 250 Overloaded Moves . | . . . . Propulsion Burnouts . | . . . . Robots Hopped . | . . . . Cave-ins Triggered . | . . . . Exploration Rate (%) 19 | 4 27 12 35 Regions Visited 3 Branch Regions 1 Pre-discovered Areas . | . . . . Known Exits Taken . | . . . . Unknown Exits Taken 3 | 1 1 1 . Scrap Searched . | . . . . Spaces Dug . | . . . . Terrain Destroyed 10 | . . . 10 Melee . | . . . . Projectile 1 | . . . 1 AOE 9 | . . . 9 Terrain Rammed . | . . . . Walls Destroyed . | . . . . Machines Disabled . | . . . . Actions | -11 -10 -10 -9 --------- Run | Jun Mat Min Mat Total 705 | 54 95 33 523 Wait 76 | . 15 . 61 Move 518 | 44 79 33 362 Hop . | . . . . Pick Up 13 | 4 1 . 8 Fast Attach 11 | 6 . . 5 Attach 5 | . . . 5 Detach . | . . . . Swap 5 | . . . 5 Drop 3 | . . . 3 Fire 19 | . . . 19 Melee 55 | . . . 55 Ram . | . . . . Kick . | . . . . Crush . | . . . . Escape Stasis . | . . . . Rewire . | . . . . Trap . | . . . . Miscellaneous . | . . . . Route ------- -11/Junkyard -10/Materials -10/Mines -9/Materials (discovered 1 exit: [*Mat]) History --------- Turn | Location | Event 27 | -11/Junkyard | Discovered new exit (range 16) 49 | -11/Junkyard | Entered Materials 112 | -10/Materials | Discovered new exit (range 15) 129 | -10/Materials | Entered Mines 147 | -10/Mines | Discovered new exit (range 11) 156 | -10/Mines | Entered Materials 156 | -9/Materials | Evolved 2 slots: Utility x2 318 | -9/Materials | Build established: Mutant 464 | -9/Materials | Lost 4 parts (1p2n1w) 495 | -9/Materials | Core integrity fell below 50% 546 | -9/Materials | Discovered new exit (range 13) 875 | -9/Materials | Self-destructed Last Messages --------------- 00862_ U-05 Engineer lays Concrete. 00862_ K-01 Serf collects debris. 00863_ U-05 Engineer lays Concrete. 00863_ S-10 Pest destroyed. 00863_ U-05 Engineer destroyed. 00863_ U-05 Engineer lays Concrete. 00865_ The unstable cave ceiling collapses. 00865_ U-05 Engineer lays Concrete. 00865_ U-05 Engineer builds a Wall. 00865_ K-01 Serf collects debris. 00866_ U-05 Engineer lays Concrete. 00866_ K-01 Serf destroyed. 00866_ S-10 Pest destroyed. 00867_ U-05 Engineer lays Concrete. 00869_ U-05 Engineer knocked back. 00870_ U-05 Engineer lays Concrete. 00871_ U-05 Engineer builds a Wall. 00871_ U-05 Engineer lays Concrete. 00873_ The unstable cave ceiling collapses. 00873_ U-05 Engineer lays Concrete. Map ----- +----------------------------------------------------+ | ?????????????????????????????????????????????????? | | ?????????????????????????????????????????????????? | | ?????????????????????????????????????????????????? | | ?????????????????????????????????????????????????? | | ######???????????????????????????????????????????? | | %#???????????????????????????????????????????? | | ####%#???????????????????????????????????????????? | | ???#[#######?????????????????????????????????????? | | ???# #?????????????????????????????????????? | | ##?# #?????????????????????????????????????? | | #?# #????????????? ???????????????????????? | | #?# #???????? ??? ##?????????????????????? | | ???# ####?????? ?????????????????????? | | ???# #????????? % % ?????????????????????? | | ???# #?????????" """[|"?????????????????????? | | ???# #??????? "" "%*% """ ?????????????????? | | ???# #????????""" * """ ??????????????????? | | ???# #????????? ???????????????????? | | ???# # #?????????% %==% ????????????????????? | | ???# # ??????? u u%! ?????????????????????? | | ???# # #####??????## %!!|??????????????????????? | | ???# #####??????????## % ??????????????????????? | | ???# ################# #??????????????????????? | | ???# + #?????###??????????????? | | ##?# # """ # ### #??????????????? | | #?# # """"" # @ [#??????????????? | | "#?# + """"" + T #??????????????? | | "#?# ##### """"" # #??????????????? | | "#?# #???# """ ## ##### #??????????????? | | T#?# #???# ## #????? ##??????????????? | | "#?# #???# ## #?????? #???????????????? | | "#?# #???# ## #??????? #???????????????? | | "#?# #???###########+#????????#???????????????? | | #?# #????????????????????????????????????????? | | ##?# #????????????????????????????????????????? | | ???# ????????????????????????????????????????? | | ???# ????????????????????????????????????????? | | ???# ????????????????????????????????????????? | | ???? ????????????????????????????????????????? | | ?????????????????????????????????????????????????? | | ?????????????????????????????????????????????????? | | ?????????????????????????????????????????????????? | | ?????????????????????????????????????????????????? | | ?????????????????????????????????????????????????? | | ?????????????????????????????????????????????????? | | | | | | | | | | | +----------------------------------------------------+ Best States ------------- Heat Dissipation 42 Energy Generation 14 Energy Capacity 250 Matter Stores 300 Matter Capacity 300 Sight Range 16 Terrain Scan Density 10 Evasion (%) 55 Targeting Accuracy 5 Recoil Reduction 2 Item Schematics ----------------- None Robot Schematics ------------------ None Fabricated ------------ Nothing Alien Tech Used ----------------- None Achievements -------------- None Challenges ------------ None Game ------ Seed AssembledGrenadeInterrupter Manual? 0 Play Time 00:14:01 Cumulative 114.5 hours Start 2023.07.12 @ 23:14:32 End 2023.07.12 @ 23:25:27 Sessions 1 Manual Loads 0 Difficulty Rogue Special Mode None Game No. 161 Rogue 161 Adventurer 0 Explorer 0 Win Type - Total 1 Types 1/0/0/0/0/0/0/0/0 Lore% 60 Gallery% 59 Achievement% 50 Wizard Run 0 Options --------- ASCII 0 Keyboard 0 Movement Numpad Keybinds 0 Fullscreen 1 Font 18/X11Bold Map View 76x50 Tactical HUD 1 Map Filters NONE Filters NONE Steam 1 RUN: a6ae6099-3dd0-46f8-8161-29eb6d92f72e